Cogmind - Beta 16 @@@ ROGUE MODE // 2025.10.31 @ 03:17:20 Player: shapeshifter Result: Destroyed by VA-15J(j) with Overtuned Pulse Rifle Performance ------------- Evolutions (3) 1500 Regions Visited (13) 2600 Robots Destroyed (140) 700 Value Destroyed (7709) 7709 Prototype IDs (32) 640 Alien Tech Used (0) 0 Bonus (4998) 4998 TOTAL SCORE: 18147 Bonus ------- High Alert Combat Kills 1299 Follower Combat Kills 1417 Entered Garrisons 600 Used RIF Installer 1500 Aligned with FarCom 300 Friendly Fire -118 Cogmind --------- Core Integrity 0/700 Matter 21/300 Energy 100/100 System Corruption 2% Temperature Hot (289) Movement Core (1350) Ox26 Location -7/Scraptown Parts ------- > --- POWER (1) -------- (None) > --- PROPULSION (2) --- (None) > --- UTILITY (8) ------ Huge Storage Unit > --- WEAPON (2) ------- (None) > --- INVENTORY (25) --- Light Nuclear Core Compact Wheel Power Amplifier Improved Cryofiber Web High-capacity Battery (250) Improved Salvage Targeting Computer Transmission Jammer Makeshift Propulsion Shielding Shock Absorption System Relay Coupler [Brawler] (32) Relay Coupler [Specialist] (23) Relay Coupler [Behemoth] (12) Improved Trap Extractor (0/6) Improved Trap Extractor (0/6) Cooled Particle Cannon Gauss Rifle Heavy Missile Launcher Remote Datajack CPS Tube (2) CPS Tube (2) Peak State ------------ > --- POWER ------------ Particle Reactor > --- PROPULSION ------- Armored Huge Wheel > --- UTILITY ---------- Huge Storage Unit Layered Medium Armor Plating Army-in-a-Box > --- WEAPON ----------- Precision Assault Rifle Precision Assault Rifle > --- INVENTORY -------- Compact Wheel Power Amplifier High-capacity Battery Improved Salvage Targeting Computer Transmission Jammer Makeshift Propulsion Shielding Medium Armor Plating Shock Absorption System Relay Coupler [Brawler] Relay Coupler [Specialist] Relay Coupler [Behemoth] Improved Trap Extractor Improved Trap Extractor Cooled Particle Cannon Gauss Rifle Precision Assault Rifle Precision Assault Rifle Heavy Missile Launcher Guided Missile Launcher Remote Datajack CPS Tube CPS Tube [Rating: 95] Favorites ----------- Power Angular Momentum Engine Engine Angular Momentum Engine Power Core Light Nuclear Core Reactor Particle Reactor Propulsion Armored Huge Wheel Treads Light Treads Wheel Armored Huge Wheel Hover Unit Improved Airjet Utility Huge Storage Unit Device Improved Cooling System Storage Huge Storage Unit Processor Core Analyzer Hackware Relay Coupler [Grunt] Protection Layered Medium Armor Plating Weapon Phase Cannon Energy Gun Thermic Laser Energy Cannon Phase Cannon Ballistic Gun Precision Assault Rifle Ballistic Cannon Advanced Assault Cannon Launcher EMP Blaster Special Weapon Remote Datajack Impact Weapon Shock Maul Build | -11 -10 -10 -10 -9 -8 -8 -8 -8 -7 -7 -7 -7 -7 ------- Run | Yrd Mat Min Exi Min Mat Gar Mat Gar Fac Gar Sto Rec Scr Slots Evolved 6 | . . . . . 4 . . . 2 . . . . Power . | . . . . . . . . . . . . . . Propulsion . | . . . . . . . . . . . . . . Utility 6 | . . . . . 4 . . . 2 . . . . Weapon . | . . . . . . . . . . . . . . Parts Attached 103 | 7 2 . 3 6 2 22 2 12 3 10 16 3 15 Power 12 | 1 1 . . 1 1 3 1 2 . . 1 . 1 Engine 8 | 1 1 . . 1 1 2 1 1 . . . . . Core 3 | . . . . . . 1 . 1 . . 1 . . Reactor 1 | . . . . . . . . . . . . . 1 Propulsion 13 | 2 . . 2 1 . 1 . 1 . 1 2 2 1 Treads 2 | 2 . . . . . . . . . . . . . Leg . | . . . . . . . . . . . . . . Wheel 10 | . . . 2 1 . 1 . 1 . 1 1 2 1 Hover 1 | . . . . . . . . . . . 1 . . Flight . | . . . . . . . . . . . . . . Utility 40 | 2 1 . 1 1 . 13 1 4 3 4 4 . 6 Device 14 | 1 . . . 1 . 4 1 1 1 1 1 . 3 Storage 6 | 1 1 . 1 . . 1 . . 1 . 1 . . Processor 3 | . . . . . . 2 . . . . . . 1 Hackware 9 | . . . . . . 2 . 3 1 2 1 . . Protection 8 | . . . . . . 4 . . . 1 1 . 2 Artifact . | . . . . . . . . . . . . . . Weapon 38 | 2 . . . 3 1 5 . 5 . 5 9 1 7 Energy Gun 8 | . . . . . 1 2 . 1 . 1 3 . . Energy Cannon 6 | . . . . 1 . . . 2 . 1 1 . 1 Ballistic Gun 12 | 2 . . . . . 3 . 1 . . 2 . 4 Ballistic Cannon 3 | . . . . 1 . . . . . . 2 . . Launcher 3 | . . . . 1 . . . . . 1 . . 1 Special Weapon 4 | . . . . . . . . 1 . 1 . 1 1 Impact Weapon 2 | . . . . . . . . . . 1 1 . . Slashing Weapon . | . . . . . . . . . . . . . . Piercing Weapon . | . . . . . . . . . . . . . . Special Melee Weapon . | . . . . . . . . . . . . . . Unidentified Prototypes 9 | . . . . . . 1 . . . 1 6 . 1 Parts Lost 24 | . 1 . . 1 1 2 1 1 . 1 5 3 8 Power 9 | . 1 . . . 1 2 1 1 . . 1 1 1 Propulsion 3 | . . . . . . . . . . . 1 1 1 Utility 9 | . . . . 1 . . . . . 1 3 1 3 Weapon 3 | . . . . . . . . . . . . . 3 Highest Loss Streak 8 | . 1 . . 1 1 1 1 1 . 1 4 2 8 To Critical Strikes 2 | . . . . . . . . . . . . . 2 Average Backups 15 | 3 3 4 7 9 10 14 19 18 15 17 18 18 20 Power . | . . . . . 1 . . . 1 1 1 1 . Propulsion 1 | 1 2 2 2 2 2 2 . 1 2 1 . . . Utility 9 | . . 1 1 5 6 11 15 12 10 10 10 10 10 Weapon 3 | . 1 1 3 2 1 1 3 2 1 3 4 7 6 Tool/Special . | . . . . . . . . . . . . . . Unused Backups 30 | . . . 1 . . 4 . 8 1 2 2 . 12 Power 2 | . . . . . . . . . . 1 . . 1 Propulsion 4 | . . . . . . 3 . . 1 . . . . Utility 16 | . . . . . . 1 . 5 . 1 . . 9 Weapon 7 | . . . 1 . . . . 3 . . 2 . 1 Tool/Special 1 | . . . . . . . . . . . . . 1 Average Slot Usage (%) 81 | . 99 95 71 72 44 72 89 87 91 90 86 73 71 Engine 5 | . 13 14 14 14 9 6 6 4 7 7 4 . . Core 1 | . . . . . . 1 1 4 . . 1 1 . Treads 3 | . 28 28 21 . . . . . . . . . . Wheel 7 | . . . 6 15 9 9 9 9 7 7 6 10 7 Device 11 | . 14 14 14 4 . 11 13 14 22 20 12 1 11 Storage 9 | . 14 14 14 14 9 9 9 9 7 7 7 7 7 Processor 11 | . . . . . . 11 18 18 15 15 15 15 12 Hackware 4 | . . . . . . 2 . 3 6 7 14 15 1 Protection 6 | . . . . . . 7 13 8 7 7 7 7 10 Energy Gun 2 | . . . . . 1 3 18 4 . . 8 . . Energy Cannon 3 | . . . . 9 8 . . 10 15 8 1 . . Ballistic Gun 7 | . 28 23 . 5 . 10 . . . . 2 9 10 Special Weapon 1 | . . . . . . . . . . 5 1 4 . Peak Build Rating 95 | 7 7 7 15 32 39 62 58 61 66 67 68 60 95 Average Rating 48 | 5 6 6 7 26 31 46 56 55 65 65 62 47 75 On Entrance 36 | . 7 7 5 15 31 38 58 56 58 66 66 60 40 Avg Prop Armor Cover (%) . | . . . . . . . . . . . . . . Naked Turns . | . . . . . . . . . . . . . . Heaviest Build 194 | 15 28 28 44 60 60 111 113 120 121 121 124 102 194 Greatest Support 40 | 40 40 40 40 28 28 28 28 28 28 28 28 32 32 Greatest Overweight (x) 32 | 1 . . 1 2 2 3 4 4 4 4 32 31 6 Average Overweight (x) 2 | . . . . 1 1 2 3 3 4 4 3 2 4 Largest Inventory Capacity 25 | 8 15 15 20 20 20 25 25 25 25 25 25 25 25 Average Capacity 22 | 7 11 15 16 20 20 24 25 25 25 25 25 25 25 Most Carried 25 | 6 4 6 18 20 20 25 25 25 25 25 25 25 25 Average Carried 21 | 3 3 4 9 19 19 23 24 24 22 24 24 24 24 Final Capacity 25 | 8 15 15 20 20 20 25 25 25 25 25 25 25 25 Final Carried 25 | 4 4 6 18 20 19 25 25 25 25 25 25 25 20 Class Distribution -------------------- 37% | Bothacker-Mutant 25% | Mutant 22% | Scavenger-Mutant 15% | Commander-Mutant Dominant Class ---------------- Mutant | -10/Materials Mutant | -10/Mines Mutant | -10/Exiles Mutant | -9/Mines Mutant | -8/Materials Scavenger-Mutant | -8/Garrison Scavenger-Mutant | -8/Materials Bothacker-Mutant | -8/Garrison Bothacker-Mutant | -7/Factory Bothacker-Mutant | -7/Garrison Bothacker-Mutant | -7/Storage Bothacker-Mutant | -7/Recycling Commander-Mutant | -7/Scraptown Resources | -11 -10 -10 -10 -9 -8 -8 -8 -8 -7 -7 -7 -7 -7 ----------- Run | Yrd Mat Min Exi Min Mat Gar Mat Gar Fac Gar Sto Rec Scr Matter Collected 3471 | 336 138 . . 332 39 814 20 570 40 180 297 403 302 Remotely . | . . . . . . . . . . . . . . Salvage Created 6319 | 109 378 . . 144 39 1340 294 1615 131 483 751 508 527 Parts 337 | 13 17 . . 8 3 71 16 78 7 28 49 20 27 Haulers Intercepted 1 | . . . . . . . . . 1 . . . . Recyclers Shooed 2 | 1 . . . . . . . . . . . 1 . Parts Field Recycled . | . . . . . . . . . . . . . . Retrieved Matter . | . . . . . . . . . . . . . . Parts Self-Destructed . | . . . . . . . . . . . . . . Prevented . | . . . . . . . . . . . . . . Parts Restored . | . . . . . . . . . . . . . . Kills | -11 -10 -10 -10 -9 -8 -8 -8 -8 -7 -7 -7 -7 -7 ------- Run | Yrd Mat Min Exi Min Mat Gar Mat Gar Fac Gar Sto Rec Scr Combat Hostiles Destroyed 121 | . 7 . . 7 1 31 9 25 1 11 13 6 10 Guns 76 | . 7 . . . 1 30 9 12 . . 11 6 . Cannons 29 | . . . . 3 . . . 12 1 11 2 . . AOE 15 | . . . . 4 . 1 . . . . . . 10 Classes Destroyed 23 | 1 3 . . 2 1 4 1 1 1 . 3 . 6 Worker 2 | . . . . . . . . . . . 2 . . Builder 2 | . 1 . . . . . . . . . 1 . . Tunneler 5 | 5 . . . . . . . . . . . . . Hauler 1 | . . . . . . . . . 1 . . . . Recycler 3 | . . . . . . . . . . . 1 2 . Mechanic 1 | . . . . . . . . . . . 1 . . Drone 3 | . . . . . . . . . . . . . 3 Watcher 5 | . 2 . . . . . . 2 . . 1 . . Swarmer 24 | . . . . 5 . 7 4 3 . 4 1 . . Grunt 35 | . 7 . . 1 . 14 2 7 . 2 2 . . Brawler 2 | . . . . 1 . . 1 . . . . . . Duelist 2 | . . . . . . . 1 1 . . . . . Protector 1 | . . . . . . 1 . . . . . . . Sentry 27 | . . . . . . 5 1 6 1 3 8 3 . Demolisher 1 | . . . . . . 1 . . . . . . . Specialist 3 | . . . . . . 2 . 1 . . . . . Hunter 7 | . . . . . 1 1 . 2 . 2 1 . . Programmer 9 | . . . . . . . . 5 . . 1 3 . Federalist 1 | . . . . . . . . . . . . . 1 Explorer 3 | . . . . . . . . . . . . . 3 Ranger 1 | . . . . . . . . . . . . . 1 Scrapper 4 | . . . . . . . . . . . . . 4 Elite 1 | . . . . . . . . . . . . . 1 Best Kill Streak 10 | 3 4 . . 4 1 6 2 4 1 6 5 3 10 Combat Bots Only 10 | . 4 . . 4 1 6 2 4 1 6 3 3 10 Max Kills in Single Turn 3 | 1 1 . . 2 1 2 1 1 1 1 2 1 3 Gunslinging 1 | . . . . . . 1 . . . . . . . Exploded 3 | . . . . 2 . 1 . . . . . . 3 Melee . | . . . . . . . . . . . . . . Uniques/NPCs Destroyed 1 | . . . . . . . . . . . . . 1 Triborg (-7/Scraptown) Combat | -11 -10 -10 -10 -9 -8 -8 -8 -8 -7 -7 -7 -7 -7 -------- Run | Yrd Mat Min Exi Min Mat Gar Mat Gar Fac Gar Sto Rec Scr Hostile Shots Fired 965 | . 45 . . 24 62 98 33 109 18 129 162 134 151 Missed 288 | . 6 . . 10 17 28 9 30 5 46 58 50 29 Hits 677 | . 39 . . 14 45 70 24 79 13 83 104 84 122 Melee 6 | . . . . . . . 2 . . . 4 . . Projectile 671 | . 39 . . 14 45 70 22 79 13 83 100 84 122 Critical Strikes 26 | . 2 . . . 1 2 2 5 . . 2 . 12 Damage Taken 7518 | . 543 . . 215 442 668 308 971 100 800 946 616 1909 Core 1287 | . 114 . . 51 75 172 17 139 23 111 173 101 311 Absorbed by Shields 758 | . . . . . . 471 . . . . . 37 250 Ignored by Resistances 273 | . . . . . . . . . . 130 115 28 . Regen/Repaired (Parts) 120 | . . . . . . . . . 120 . . . . Core Remaining (%) 53 | 100 . . . 34 . . . 26 . . . . . Volleys Fired 513 | 11 43 . . 18 4 86 27 123 4 57 45 76 19 Largest 2 | 2 2 . . 1 2 2 2 2 2 2 2 2 2 Hottest 170 | 40 40 . . 69 109 56 170 170 170 170 150 56 56 Shots Fired 881 | 22 87 . . 18 18 188 54 211 8 68 73 107 27 Gun 646 | 22 87 . . . 10 185 54 147 . . 63 62 16 Cannon 155 | . . . . 15 8 3 . 59 8 57 5 . . Launcher 14 | . . . . 3 . . . . . . . . 11 Special 66 | . . . . . . . . 5 . 11 5 45 . Kinetic 389 | 22 87 . . 8 4 124 . 54 . . 12 62 16 Thermal 401 | . . . . . 10 64 54 152 8 57 56 . . Explosive 11 | . . . . . . . . . . . . . 11 Electromagnetic 14 | . . . . 10 4 . . . . . . . . Robot Hit Streak 56 | 4 13 . . 5 5 29 6 56 6 11 20 24 18 Robot Miss Streak 11 | 3 3 . . 4 1 3 4 3 1 3 11 2 3 Penetration Max 1 | . . . . . . 1 . 1 . . . . . Secondary Targets 6 | . . . . . . 4 . 1 . . 1 . . Max Gunslinging Chain 1 | . . . . . . 1 . 1 . . 1 . . Autonomous 117 | . . . . . 10 64 . 43 . . . . . Shots Hit Robots 612 | 12 64 . . 7 13 135 27 147 6 39 60 89 13 Core Hits 340 | 6 22 . . 8 1 63 15 63 3 14 86 14 45 Critical Kills 3 | . . . . . . 1 . 1 . . 1 . . Critical Parts Destroyed 2 | . . . . . . . . 2 . . . . . Critical Strikes 18 | . . . . . . 3 5 9 . . 1 . . Burn 11 | . . . . . . . 5 6 . . . . . Destroy 7 | . . . . . . 3 . 3 . . 1 . . Melee Attacks . | . . . . . . . . . . . . . . Impact . | . . . . . . . . . . . . . . Slashing . | . . . . . . . . . . . . . . Piercing . | . . . . . . . . . . . . . . Sneak Attacks . | . . . . . . . . . . . . . . Combat Hostiles . | . . . . . . . . . . . . . . Follow-up Attacks . | . . . . . . . . . . . . . . Damage Inflicted 13977 | 165 821 . . 424 425 3106 486 3266 184 1012 1378 1078 1632 Guns 9478 | 165 821 . . . 264 2801 486 2341 . . 1259 1078 263 Cannons 2590 | . . . . 189 161 . . 925 184 1012 119 . . Explosions 1909 | . . . . 235 . 305 . . . . . . 1369 Melee . | . . . . . . . . . . . . . . Ramming . | . . . . . . . . . . . . . . Kinetic 4556 | 165 821 . . 135 62 1112 . 701 . . 219 1078 263 Thermal 7461 | . . . . 102 264 1689 486 2565 184 1012 1159 . . Explosive 1674 | . . . . . . 305 . . . . . . 1369 Electromagnetic 286 | . . . . 187 99 . . . . . . . . Impact . | . . . . . . . . . . . . . . Slashing . | . . . . . . . . . . . . . . Piercing . | . . . . . . . . . . . . . . Highest Corruption 5 | . 5 5 5 5 . . . 4 . . 1 3 2 Average Corruption 3 | . 3 5 5 5 . . . 3 . . 1 1 1 Corruption Purged . | . . . . . . . . . . . . . . Corruption Blocked . | . . . . . . . . . . . . . . Effects 89 | . 15 1 9 15 . . . 34 . . . 15 . Message Errors 34 | . 9 . 2 8 . . . 10 . . . 5 . Matter Fused 17 | . . 1 2 2 . . . 8 . . . 4 . Heat Flow Errors 11 | . 4 . 2 2 . . . 2 . . . 1 . Energy Discharges 9 | . . . 2 1 . . . 3 . . . 3 . Data Loss (minor) 10 | . . . 1 1 . . . 7 . . . 1 . Data Loss (major) 1 | . . . . . . . . 1 . . . . . Misfires 4 | . 1 . . . . . . 3 . . . . . Alerts 3 | . 1 . . 1 . . . . . . . 1 . Overload Shots . | . . . . . . . . . . . . . . Overflow Damage 92 | . . . . 12 6 . . 37 . 6 . . 31 Projectiles 49 | . . . . . 6 . . 37 . 6 . . . Explosions 43 | . . . . 12 . . . . . . . . 31 Melee . | . . . . . . . . . . . . . . Knockbacks 1 | . . . . . 1 . . . . . . . . Impact . | . . . . . . . . . . . . . . Kinetic 1 | . . . . . 1 . . . . . . . . Secondary . | . . . . . . . . . . . . . . Self-Inflicted Damage 92 | . . . . 48 . . . . . . . . 44 Shots 3 | . . . . 2 . . . . . . . . 1 Rammed . | . . . . . . . . . . . . . . Targets Rammed . | . . . . . . . . . . . . . . Kicked . | . . . . . . . . . . . . . . Crushed . | . . . . . . . . . . . . . . Highest Temperature 352 | . 156 . 245 116 141 . 153 240 66 352 315 99 277 Average Temperature 58 | . 42 . 119 38 70 . 52 75 34 79 50 13 73 Received Heat Transfer 2121 | . 348 . . 21 27 214 90 315 30 141 300 186 449 Effects 3 | . . . . . . . . . . . 3 . . Interference 3 | . . . . . . . . . . . 3 . . Siege Activations . | . . . . . . . . . . . . . . Martial Activations . | . . . . . . . . . . . . . . Shielding Activations . | . . . . . . . . . . . . . . Robots Disrupted . | . . . . . . . . . . . . . . Combat Hostiles . | . . . . . . . . . . . . . . Robots Corrupted . | . . . . . . . . . . . . . . Combat Hostiles . | . . . . . . . . . . . . . . Parts Fried . | . . . . . . . . . . . . . . Impact Corruptions . | . . . . . . . . . . . . . . Robots Melted 1 | . . . . . . . . 1 . . . . . Combat Hostiles 1 | . . . . . . . . 1 . . . . . Parts Melted 16 | . . . . 2 . 3 4 1 . 4 1 . 1 Heat Transferred 10745 | . . . . 200 333 2011 1850 4096 222 1064 969 . . Parts Sabotaged . | . . . . . . . . . . . . . . Parts Stolen . | . . . . . . . . . . . . . . Parts Stripped . | . . . . . . . . . . . . . . Power Chain Reactions 2 | . . . . 2 . . . . . . . . . Alert | -11 -10 -10 -10 -9 -8 -8 -8 -8 -7 -7 -7 -7 -7 ------- Run | Yrd Mat Min Exi Min Mat Gar Mat Gar Fac Gar Sto Rec Scr Maximum Alert Level 5 | . . . . 1 . 5 3 5 3 2 1 . . Low Security (%) 43 | 100 100 100 . 98 100 9 . . . 9 68 100 . Level 1 11 | . . . . 1 . 16 . . 24 54 31 . . Level 2 6 | . . . . . . 9 . 12 . 36 . . . Level 3 16 | . . . . . . 21 100 18 75 . . . . Level 4 17 | . . . . . . 26 . 61 . . . . . Level 5 4 | . . . . . . 17 . 7 . . . . . High Security . | . . . . . . . . . . . . . . Max Security . | . . . . . . . . . . . . . . Peak Influence 1763 | 5 115 . . 200 62 1650 879 1763 925 562 346 114 . Initial 925 | . . . . . 62 22 804 566 925 197 273 74 . Average 549 | . 48 . . 55 38 928 819 1209 727 371 162 36 . Influence Increases 5441 | 25 280 . . 361 36 1648 291 1227 53 415 750 355 . Destroy 0b10 Robot/C 2820 | . 140 . . 260 20 840 180 620 20 220 380 140 . Destroy 0b10 Robot/NC 125 | 25 15 . . . . 10 . 25 5 . 35 10 . Destroy Leader 360 | . 44 . . 30 10 20 50 40 12 20 134 . . Allied During Kill 381 | . . . . 23 . 200 . 11 . 1 139 7 . Successful Hack 146 | . 20 . . 11 4 21 . . 14 14 44 18 . Select Force Hacks 210 | . 30 . . . . . . . . . . 180 . Disable Machine 90 | . . . . 30 . . 30 15 . . 15 . . Anti-Garrison Action 1000 | . . . . . . 450 . 450 . 100 . . . Destroy Structure 204 | . 1 . . 7 2 107 1 51 2 30 3 . . Lose Combat Pursuer 105 | . 30 . . . . . 30 15 . 30 . . . Influence Decreases 5441 | 25 280 . . 201 162 32 1070 335 1534 135 1121 546 . Entered New Map 2590 | . . . . . 98 12 846 305 838 85 289 117 . Time Decay 1782 | 25 270 . . 186 24 . 214 . 246 . 452 365 . Lost Part 150 | . 10 . . 10 . 20 10 10 . 10 50 30 . Lost Ally 469 | . . . . 5 40 . . 20 . 40 330 34 . Purge Threat 450 | . . . . . . . . . 450 . . . . Squads Dispatched 15 | . 1 . . . 2 . 5 . 2 . 5 . . Investigation 3 | . 1 . . . . . . . 1 . 1 . . Extermination 3 | . . . . . . . . . 1 . 2 . . Reinforcement 4 | . . . . . 1 . 1 . . . 2 . . Assault 1 | . . . . . . . 1 . . . . . . Garrison 4 | . . . . . 1 . 3 . . . . . . Intercept . | . . . . . . . . . . . . . . Searches Triggered . | . . . . . . . . . . . . . . Construction Impeded . | . . . . . . . . . . . . . . Haulers Reinforced . | . . . . . . . . . . . . . . Active Scanning Responses . | . . . . . . . . . . . . . . Cargo Convoy Interrupts . | . . . . . . . . . . . . . . Stealth | -11 -10 -10 -10 -9 -8 -8 -8 -8 -7 -7 -7 -7 -7 --------- Run | Yrd Mat Min Exi Min Mat Gar Mat Gar Fac Gar Sto Rec Scr Distress Signals 13 | . 2 . . . 2 . 3 1 . . 5 . . Communications Jammed . | . . . . . . . . . . . . . . Distress Signals . | . . . . . . . . . . . . . . Times Spotted 240 | . 11 . . 13 9 48 17 33 2 17 28 7 55 Peak Tracking Total 50 | . 7 . . 4 10 8 4 4 1 4 3 3 50 Tactical Retreats 5 | . 1 . . . . . 1 1 . 1 . . 1 Traps | -11 -10 -10 -10 -9 -8 -8 -8 -8 -7 -7 -7 -7 -7 ------- Run | Yrd Mat Min Exi Min Mat Gar Mat Gar Fac Gar Sto Rec Scr Traps Triggered 20 | . 3 . . 1 . 4 . 7 . 3 2 . . Indirectly . | . . . . . . . . . . . . . . Trap Hack Attempts . | . . . . . . . . . . . . . . Triggered . | . . . . . . . . . . . . . . Disarmed . | . . . . . . . . . . . . . . Reprogrammed . | . . . . . . . . . . . . . . Reused . | . . . . . . . . . . . . . . Traps Extracted . | . . . . . . . . . . . . . . Installed . | . . . . . . . . . . . . . . Triggered . | . . . . . . . . . . . . . . Most Traps Carried 1 | . . . . 1 1 1 . . . . . . . Machines | -11 -10 -10 -10 -9 -8 -8 -8 -8 -7 -7 -7 -7 -7 ---------- Run | Yrd Mat Min Exi Min Mat Gar Mat Gar Fac Gar Sto Rec Scr Machines Disabled 33 | . . . . 2 . 10 2 8 . 3 1 . 7 Max in Single Turn 2 | . . . . 1 . 2 1 2 . 1 1 . 2 Garrison Relay 9 | . . . . . . 4 . 3 . 2 . . . Phase Generator 2 | . . . . . . 1 . 1 . . . . . Machines Repaired . | . . . . . . . . . . . . . . Machines Dismantled . | . . . . . . . . . . . . . . Machines Sabotaged . | . . . . . . . . . . . . . . Overloaded Fab Kills . | . . . . . . . . . . . . . . Hacking | -11 -10 -10 -10 -9 -8 -8 -8 -8 -7 -7 -7 -7 -7 --------- Run | Yrd Mat Min Exi Min Mat Gar Mat Gar Fac Gar Sto Rec Scr Machines Accessed 51 | . 6 . 2 2 1 4 3 4 9 2 8 10 . Terminals 31 | . 5 . . 1 . 4 2 4 1 2 8 4 . Fabricators 2 | . . . . . . . . . 2 . . . . Repair Stations 1 | . . . . . . . . . 1 . . . . Recycling Units 9 | . 1 . . . . . . . 2 . . 6 . Scanalyzers 2 | . . . . . . . . . 2 . . . . Garrison Access 3 | . . . . . 1 . 1 . 1 . . . . Total Hacks 109 | . 17 . 3 5 1 8 5 7 22 3 13 25 . Successful 54 | . 8 . 3 3 1 2 1 . 10 1 8 17 . Failed 54 | . 9 . . 2 . 6 4 7 11 2 5 8 . Catastrophic 11 | . . . . . . 1 1 1 2 . 3 3 . Database Lockouts 1 | . . . . . . . . . 1 . . . . Manual 40 | . 15 . 1 . . . 3 . 1 . 5 15 . Terminals 65 | . 13 . . 4 . 8 4 7 5 3 13 8 . Fabricators 4 | . . . . . . . . . 4 . . . . Repair Stations 4 | . . . . . . . . . 4 . . . . Recycling Units 24 | . 4 . . . . . . . 3 . . 17 . Scanalyzers 5 | . . . . . . . . . 5 . . . . Garrison Access 3 | . . . . . 1 . 1 . 1 . . . . Terminal Hacks 19 | . . . 3 3 . 2 . . 3 1 7 . . Record 2 | . . . 2 . . . . . . . . . . Open Door 7 | . . . . 1 . 1 . . . . 5 . . Unreport Threat 3 | . . . . . . . . . 3 . . . . Dispatch Records 1 | . . . . 1 . . . . . . . . . Patrol Status 1 | . . . . 1 . . . . . . . . . Zone Layout 2 | . . . . . . . . . . . 2 . . Garrison Registry 2 | . . . . . . 1 . . . 1 . . . Proto ID Catalog 1 | . . . 1 . . . . . . . . . . Fabricator Hacks 1 | . . . . . . . . . 1 . . . . Network Status 1 | . . . . . . . . . 1 . . . . Repair Station Hacks 1 | . . . . . . . . . 1 . . . . Scan Component 1 | . . . . . . . . . 1 . . . . Recycling Unit Hacks 9 | . . . . . . . . . 2 . . 7 . Retrieve Components 9 | . . . . . . . . . 2 . . 7 . Scanalyzer 1 | . . . . . . . . . 1 . . . . Retrieve Study 1 | . . . . . . . . . 1 . . . . Garrison Access Hacks 3 | . . . . . 1 . 1 . 1 . . . . Unlock Access 3 | . . . . . 1 . 1 . 1 . . . . Unauthorized Hacks 19 | . 8 . . . . . . . 1 . 1 9 . Terminals 11 | . 7 . . . . . . . . . 1 3 . Botnet 1 | . 1 . . . . . . . . . . . . Operators 1 | . 1 . . . . . . . . . . . . Skim 9 | . 5 . . . . . . . . . 1 3 . Fabricators . | . . . . . . . . . . . . . . Repair Stations 1 | . . . . . . . . . 1 . . . . Patch 1 | . . . . . . . . . 1 . . . . Recycling Units 7 | . 1 . . . . . . . . . . 6 . Tunnel 7 | . 1 . . . . . . . . . . 6 . Scanalyzers . | . . . . . . . . . . . . . . Garrison Access . | . . . . . . . . . . . . . . Data Cores Recovered . | . . . . . . . . . . . . . . Used . | . . . . . . . . . . . . . . Hacking Detections 37 | . 6 . . . . 3 2 4 8 1 6 7 . Full Trace Events 3 | . . . . . . 1 . 1 . . 1 . . Feedback Events 1 | . . . . . . . . . . . 1 . . Corruption 1 | . . . . . . . . . . . 1 . . Feedback Blocked . | . . . . . . . . . . . . . . Robot Schematics Acquired . | . . . . . . . . . . . . . . Robots Built . | . . . . . . . . . . . . . . Authchips . | . . . . . . . . . . . . . . Time . | . . . . . . . . . . . . . . Total Robot Build Rating . | . . . . . . . . . . . . . . Part Schematics Acquired . | . . . . . . . . . . . . . . Parts Built . | . . . . . . . . . . . . . . Authchips . | . . . . . . . . . . . . . . Time . | . . . . . . . . . . . . . . Total Part Build Rating . | . . . . . . . . . . . . . . Part Studies Acquired 1 | . . . . . . . . . 1 . . . . Parts Repaired . | . . . . . . . . . . . . . . Time . | . . . . . . . . . . . . . . Parts Recycled . | . . . . . . . . . . . . . . Recycled Matter . | . . . . . . . . . . . . . . Retrieved Matter . | . . . . . . . . . . . . . . Retrieved Components 13 | . . . . . . . . . 3 . . 10 . Parts Scanalyzed . | . . . . . . . . . . . . . . Part Schematics Acquired . | . . . . . . . . . . . . . . Parts Damaged . | . . . . . . . . . . . . . . Bothacking | -11 -10 -10 -10 -9 -8 -8 -8 -8 -7 -7 -7 -7 -7 ------------ Run | Yrd Mat Min Exi Min Mat Gar Mat Gar Fac Gar Sto Rec Scr Used RIF Installer 3 | . . . . . . 1 . 1 . 1 . . . Command Fork 1 | . . . . . . . . . . 1 . . . Robot Detection 1 | . . . . . . . . 1 . . . . . Robots Hacked 12 | . . . . . . . . 4 . 5 2 1 . Non-combat . | . . . . . . . . . . . . . . Combat 12 | . . . . . . . . 4 . 5 2 1 . Robot Hacks Applied 14 | . . . . . . . . 4 . 6 3 1 . parse_system 2 | . . . . . . . . . . . 1 1 . amplify_resonance 3 | . . . . . . . . 1 . 1 1 . . disable_weapons 1 | . . . . . . . . 1 . . . . . reboot_system 1 | . . . . . . . . . . 1 . . . overwrite_iff 3 | . . . . . . . . . . 3 . . . formatsys_high 4 | . . . . . . . . 2 . 1 1 . . Relay Couplers Released 35 | . . . . . . 17 . 11 . 7 . . . Machine Destruction 35 | . . . . . . 17 . 11 . 7 . . . Attached 9 | . . . . . . 2 . 3 1 2 1 . . Fabnet Peak Effective % . | . . . . . . . . . . . . . . Robots Rewired 19 | . . . . . . . . . . . . 19 . Allies Hacked 6 | . . . . . . 5 . . . . . 1 . Hacks Repelled . | . . . . . . . . . . . . . . Allies | -11 -10 -10 -10 -9 -8 -8 -8 -8 -7 -7 -7 -7 -7 -------- Run | Yrd Mat Min Exi Min Mat Gar Mat Gar Fac Gar Sto Rec Scr Total Allies 45 | . . . . 3 . 6 . 2 . 4 11 19 . Largest Group 15 | . . . . 3 2 5 . 2 . 1 10 15 15 Highest-Rated Group 315 | . . . . 40 32 315 . 36 . 29 173 284 284 Highest-Rated Ally 178 | . . . . 16 16 178 . 21 . 29 32 40 40 Total Orders 8 | . . . . . . . . . . . 3 . 5 STAY 1 | . . . . . . . . . . . . . 1 AID 3 | . . . . . . . . . . . . . 3 EXPLORE 3 | . . . . . . . . . . . 3 . . RETURN 1 | . . . . . . . . . . . . . 1 Ally Attacks 512 | . . . . 28 6 62 . 18 . 7 92 9 290 Total Damage 8646 | . . . . 240 43 2502 . 327 . 82 1260 114 4078 Kills 71 | . . . . 6 . 13 . 7 . . 9 1 35 Allies Corrupted 1 | . . . . . . . . . . . 1 . . Allies Melted 1 | . . . . . . 1 . . . . . . . Intel | -11 -10 -10 -10 -9 -8 -8 -8 -8 -7 -7 -7 -7 -7 ------- Run | Yrd Mat Min Exi Min Mat Gar Mat Gar Fac Gar Sto Rec Scr Active Infowar (turns) 3458 | 108 943 45 459 201 . 1 . . 531 440 . . 730 Sensors 1 | . . . . . . 1 . . . . . . . Seismic 1756 | 108 943 45 459 201 . . . . . . . . . Cloaking 971 | . . . . . . . . . 531 440 . . . Jamming 730 | . . . . . . . . . . . . . 730 Robot Analysis Total . | . . . . . . . . . . . . . . Derelict Logs Recovered 1 | . . . . 1 . . . . . . . . . Drone Launches 72 | . . . . . . . . . . . 23 . 49 Drone Recoveries 26 | . . . . . . . . . . . 7 . 19 Exploration | -11 -10 -10 -10 -9 -8 -8 -8 -8 -7 -7 -7 -7 -7 ------------- Run | Yrd Mat Min Exi Min Mat Gar Mat Gar Fac Gar Sto Rec Scr Turns Passed 11445 | 341 943 45 459 627 78 1797 451 1897 539 600 1132 1105 1431 Spaces Moved 5978 | 191 397 28 314 475 43 860 140 949 332 289 600 528 832 Core 34 | 22 . . . . . . . . . . 1 11 . Treads 814 | 169 397 28 220 . . . . . . . . . . Legs . | . . . . . . . . . . . . . . Wheels 5130 | . . . 94 475 43 860 140 949 332 289 599 517 832 Hover . | . . . . . . . . . . . . . . Flight . | . . . . . . . . . . . . . . Fastest Speed 50 | 50 160 160 105 105 115 115 145 145 150 150 135 130 130 Average Speed 146 | 148 160 160 143 114 128 143 149 147 150 150 140 162 154 Slowest Speed 1650 | 160 160 160 160 130 130 145 160 160 160 150 1650 1600 180 Overloaded Moves . | . . . . . . . . . . . . . . Propulsion Burnouts . | . . . . . . . . . . . . . . Robots Hopped . | . . . . . . . . . . . . . . Potential Cave-ins . | . . . . . . . . . . . . . . Cave-ins Triggered . | . . . . . . . . . . . . . . Exploration Rate (%) 55 | 8 77 7 68 98 12 81 16 92 12 55 89 95 61 Regions Visited 13 Branch Regions 6 Pre-discovered Areas 8 | . 1 . 1 . . . . . . . . 6 . Known Exits Taken 5 | . . 1 . . 1 . 1 . 1 . 1 . . Unknown Exits Taken 5 | 1 1 . 1 1 . . . . . . . 1 . Scrap Searched 10 | . . . . 2 . . . . . . . . 8 Spaces Dug . | . . . . . . . . . . . . . . Terrain Destroyed 252 | . . . . 7 2 133 . 79 2 . 1 . 28 Melee . | . . . . . . . . . . . . . . Projectile 10 | . . . . 3 2 1 . . 2 . 1 . 1 AOE 241 | . . . . 4 . 131 . 79 . . . . 27 Terrain Rammed . | . . . . . . . . . . . . . . Walls Destroyed . | . . . . . . . . . . . . . . Machines Disabled . | . . . . . . . . . . . . . . Actions | -11 -10 -10 -10 -9 -8 -8 -8 -8 -7 -7 -7 -7 -7 --------- Run | Yrd Mat Min Exi Min Mat Gar Mat Gar Fac Gar Sto Rec Scr Total 7956 | 226 619 29 321 543 58 1314 327 1289 362 392 828 688 960 Wait 969 | 7 175 . . 20 5 251 156 110 14 4 101 73 53 Move 5968 | 190 396 27 313 474 43 859 140 948 332 288 599 527 832 Hop . | . . . . . . . . . . . . . . Pick Up 140 | 11 2 . 4 12 2 38 1 21 5 7 24 . 13 Fast Attach 31 | . . . . 1 . 9 1 6 . 1 4 2 7 Attach 84 | 7 1 . . 6 2 26 . 10 3 3 14 1 11 Detach 14 | . . 2 . 1 . 5 . 1 . . 1 1 3 Swap 41 | . 1 . 3 1 . 1 1 11 1 9 3 7 3 Drop 125 | . 1 . 1 10 2 31 1 27 3 7 22 1 19 Fire 513 | 11 43 . . 18 4 86 27 123 4 57 45 76 19 Melee . | . . . . . . . . . . . . . . Ram . | . . . . . . . . . . . . . . Kick . | . . . . . . . . . . . . . . Crush . | . . . . . . . . . . . . . . Escape Stasis 64 | . . . . . . 8 . 32 . 16 8 . . Rewire . | . . . . . . . . . . . . . . Trap . | . . . . . . . . . . . . . . Miscellaneous 7 | . . . . . . . . . . . 7 . . Route ------- -11/Scrapyard -10/Materials (discovered 5 exits: *Mat x3 / [*Min] / *Sub) -10/Mines (discovered 4 exits: Mat x2 / *Exi / Sub) -10/Exiles -9/Mines (discovered 2 exits: *Mat x2) -8/Materials -8/Garrison (discovered 4 exits: *Fac x3 / *Mat) -8/Materials -8/Garrison (discovered 3 exits: *Fac x3) -7/Factory (discovered 2 exits: *Sto / Gar) -7/Garrison (discovered 3 exits: *Sto x3) -7/Storage (discovered 2 exits: [*Fac] / *Rec) -7/Recycling (discovered 2 exits: [*Fac] / [*Scr]) -7/Scraptown (discovered 1 exit: [*Fac]) History --------- Turn | Location | Event 16 | -11/Scrapyard | Discovered new exit (range 16) 342 | -11/Scrapyard | Entered Materials 343 | -10/Materials | Build established: Mutant 456 | -10/Materials | Discovered new exit (range 3) 739 | -10/Materials | Discovered new exit (range 11) 781 | -10/Materials | Discovered new exit (range 5) 1015 | -10/Materials | Learned Storage stockpile data 1053 | -10/Materials | Discovered new exit (range 11) 1066 | -10/Materials | Identified exit to Materials 1109 | -10/Materials | Learned Storage machine intel 1168 | -10/Materials | Learned location of 2 exits from Mines 1210 | -10/Materials | Learned Storage emergency access door positions 1285 | -10/Materials | Entered Mines 1287 | -10/Mines | Identified exit to Subcaves 1287 | -10/Mines | Identified exit to Exiles 1322 | -10/Mines | Deemed a non-threat by the Exiles lab entrance 1330 | -10/Mines | Entered Exiles 1367 | -10/Exiles | Met 8R-AWN 1396 | -10/Exiles | Met EX-HEX 1480 | -10/Exiles | Met EX-DEC 1507 | -10/Exiles | Learned location of Zion (-7) 1605 | -10/Exiles | Met EX-BIN 1627 | -10/Exiles | Aligned with FarCom system 1629 | -10/Exiles | Given EX-Vault access code 1666 | -10/Exiles | Opened EX-Vault 1677 | -10/Exiles | Found Army-in-a-Box 1681 | -10/Exiles | Found AWS/Thermal 1690 | -10/Exiles | Found Flying Fortress v7 1712 | -10/Exiles | Warned to stay clear of 0b10 Research branches 1778 | -10/Exiles | Discovered new exit (range 14) 1789 | -10/Exiles | Stole three prototypes: Flying Fortress v7, Army-in-a-Box, AWS/Thermal 1789 | -10/Exiles | Entered Mines 1808 | -9/Mines | Found a damaged Exp. Sensor Array with a note attached 1810 | -9/Mines | Found Prototype Device 1847 | -9/Mines | Met a Derelict who couldn't figure out how to use a Trap Extractor 1988 | -9/Mines | Discovered new exit (range 4) 1991 | -9/Mines | Core integrity fell below 50% 2031 | -9/Mines | Found a hidden stash of uninstalled traps 2147 | -9/Mines | Assisted by bots powering up and referring to "LRC-V3" 2206 | -9/Mines | Learned Materials garrison access intel 2308 | -9/Mines | Discovered new exit (range 7) 2364 | -9/Mines | Found DCF Scrap (13 items) 2416 | -9/Mines | Entered Materials 2416 | -8/Materials | Accompanied by 2 allies 2416 | -8/Materials | Evolved 4 slots: Utility x4 2417 | -8/Materials | Loaded intel: 1 garrison access location 2477 | -8/Materials | Garrison activated, responded to threat 2494 | -8/Materials | Identified exit to Garrison 2494 | -8/Materials | Entered Garrison 2526 | -8/Garrison | Triggered checkpoint 2563 | -8/Garrison | Garrison Relay disabled 2659 | -8/Garrison | Rescued AZ-K3N 2884 | -8/Garrison | Triggered checkpoint 2940 | -8/Garrison | Triggered checkpoint 3022 | -8/Garrison | Triggered checkpoint 3050 | -8/Garrison | Garrison Relay disabled 3064 | -8/Garrison | Identified Exp. Sensor Array 3094 | -8/Garrison | Discovered new exit (range 9) 3110 | -8/Garrison | Triggered checkpoint 3132 | -8/Garrison | Discovered new exit (range 5) 3295 | -8/Garrison | Build established: Scavenger-Mutant 3298 | -8/Garrison | Triggered checkpoint 3334 | -8/Garrison | Triggered checkpoint 3338 | -8/Garrison | AZ-K3N assimilated hostile G-47 Trooper 3394 | -8/Garrison | Triggered checkpoint 3405 | -8/Garrison | AZ-K3N assimilated hostile G-47 Trooper 3432 | -8/Garrison | AZ-K3N assimilated hostile G-47 Trooper 3434 | -8/Garrison | Phase Generator disabled 3531 | -8/Garrison | Discovered new exit (range 3) 3555 | -8/Garrison | Discovered new exit (range 74) 3555 | -8/Garrison | Discovered new exit (range 56) 3555 | -8/Garrison | Discovered new exit (range 9) 3555 | -8/Garrison | Discovered new exit (range 75) 3693 | -8/Garrison | Spotted B-75 Beast 3756 | -8/Garrison | AZ-K3N assimilated hostile B-75 Beast 3788 | -8/Garrison | Triggered checkpoint 3823 | -8/Garrison | Installed Relay Interface Framework 3870 | -8/Garrison | Garrison Relay disabled 3877 | -8/Garrison | Garrison Relay disabled 4291 | -8/Garrison | Entered Materials 4499 | -8/Materials | Garrison activated, responded to threat 4691 | -8/Materials | First assault squad dispatched 4742 | -8/Materials | Identified exit to Garrison 4742 | -8/Materials | Entered Garrison 4764 | -8/Garrison | Triggered checkpoint 4777 | -8/Garrison | Core integrity fell below 50% 4854 | -8/Garrison | Triggered checkpoint 5119 | -8/Garrison | AWS/Thermal suddenly broke down 5193 | -8/Garrison | Garrison Relay disabled 5294 | -8/Garrison | Phase Generator disabled 5294 | -8/Garrison | Spotted B-75 Beast 5332 | -8/Garrison | Garrison Relay disabled 5562 | -8/Garrison | Triggered checkpoint 5617 | -8/Garrison | Discovered new exit (range 13) 5658 | -8/Garrison | Triggered checkpoint 5678 | -8/Garrison | Garrison Relay disabled 5772 | -8/Garrison | Triggered checkpoint 5836 | -8/Garrison | Triggered checkpoint 5863 | -8/Garrison | Discovered new exit (range 13) 5980 | -8/Garrison | Build established: Bothacker-Mutant 6152 | -8/Garrison | Expanded RIF knowledge: Robot Detection 6188 | -8/Garrison | Triggered checkpoint 6466 | -8/Garrison | Discovered new exit (range 7) 6500 | -8/Garrison | Triggered checkpoint 6639 | -8/Garrison | Entered Factory 6639 | -7/Factory | Evolved 2 slots: Utility x2 6641 | -7/Factory | FarCom data flow suspended 6697 | -7/Factory | Central database locked down 7096 | -7/Factory | Discovered new exit (range 3) 7178 | -7/Factory | Identified exit to Garrison 7178 | -7/Factory | Entered Garrison 7228 | -7/Garrison | Triggered checkpoint 7265 | -7/Garrison | Garrison Relay disabled 7379 | -7/Garrison | Discovered new exit (range 46) 7379 | -7/Garrison | Discovered new exit (range 52) 7379 | -7/Garrison | Discovered new exit (range 25) 7384 | -7/Garrison | Triggered checkpoint 7587 | -7/Garrison | Triggered checkpoint 7682 | -7/Garrison | Triggered checkpoint 7712 | -7/Garrison | Expanded RIF knowledge: Command Fork 7727 | -7/Garrison | Garrison Relay disabled 7778 | -7/Garrison | Entered Storage 7778 | -7/Storage | Accompanied by 1 ally 7779 | -7/Storage | Identified exit to Recycling 7781 | -7/Storage | Loaded intel: 47 machine locations 8350 | -7/Storage | Assisted by bots powering up and referring to "LRC-V3" 8574 | -7/Storage | Lost 4 parts (1p3u) 8664 | -7/Storage | Discovered new exit (range 16) 8836 | -7/Storage | Lost 7 allies 8865 | -7/Storage | Found Prototype Launcher 8905 | -7/Storage | Used back door to open Recycling access 8910 | -7/Storage | Entered Recycling 9052 | -7/Recycling | Discovered new exit (range 15) 9175 | -7/Recycling | Core integrity fell below 50% 9565 | -7/Recycling | P-60 Hacker assimilated allied Excavator 4c 9918 | -7/Recycling | Scanned before Scraplab entrance 9947 | -7/Recycling | Entered Scraplab 9950 | -7/Recycling | Build established: Commander-Mutant 9958 | -7/Recycling | Discovered new exit (range 3) 10015 | -7/Recycling | Entered Scraptown 10015 | -7/Scraptown | Accompanied by 15 allies 10015 | -7/Scraptown | System corruption cleaned by C-Scrubber 10138 | -7/Scraptown | Identified Gui. Missile Launcher 10211 | -7/Scraptown | Visited Junk Repository 10258 | -7/Scraptown | Visited SPCMW 10316 | -7/Scraptown | Heard Great Nut preacher, LISTEN AND RECITE! 10511 | -7/Scraptown | Discovered new exit (range 11) 10658 | -7/Scraptown | Visited Bundlers 10682 | -7/Scraptown | Visited Cyclists 10717 | -7/Scraptown | Visited Assassins FH 10756 | -7/Scraptown | Visited Comm Corps 11308 | -7/Scraptown | Attacked by Scraptown defenders 11310 | -7/Scraptown | Allies destroyed Triborg 11444 | -7/Scraptown | Destroyed 10 combat bots 11445 | -7/Scraptown | Core integrity fell below 20% 11446 | -7/Scraptown | Destroyed by VA-15J(j) with Overtuned Pulse Rifle Last Messages --------------- 11442_ Army Drone suffers critical hit (Destroy). 11442_ Army Drone destroyed. 11442_ Critical hit (Burn: +50). 11443_ 1E-AA4(j) heat short circuits Mak. Microdissipator Network. 11443_ Penetrated by Bolt. 11443_ Angel 4c destroyed. 11443_ Penetrated by Bolt. 11443_ Critical hit (Burn: +50). 11444_ Arm. Huge Wheel+ destroyed. 11444_ Penetrated by HV Slug. 11444_ HV Slug penetrates Optimus. 11444_ Particle Reactor destroyed. 11444_ Critical hit (Burn: +50). 11445_ JG-M50(j) destroyed. 11445_ Prc. Assault Rifle destroyed. 11445_ Critical hit (Destroy). 11445_ Prc. Assault Rifle destroyed. 11445_ Penetrated by Bolt. 11446_ Penetrated by HV Slug. 11446_ 1E-AA4(j) overheating. Map ----- +----------------------------------------------------+ | """#?????????????????????????????????????????????? | | """#?????????????????????????????????????????????? | | ####?????????????????????????????????????????????? | | ?????????????????????????????????????????????????? | | ?????????????????????????????????????????????????? | | ???""?"??????????????????????????????????????????? | | "??" " ??????????????????????????????????????????? | | "? ??????????????????????????????????????????? | | ? " ""?????????????#X?????????????????????????? | | " ""?????????????# ?????????????????????????? | | " "#????????????# ???????????#?????????????? | | ? " "#????????????# ##???##??? # ???????????? | | ??? " """#????????????? ??? #??? ??????????? | | ????" "#????????????? ??? ### ??????????? | | ????? ""#?????????????# #??? # ##??????????? | | ####### ####???????#####!#### # "##?????????? | | % #???????#""""% """ """???????? | | % #???????#" == =!%! ???????? | | #???????#" *!! =E= ???????? | | #???????#" !%=!=!E ??????? | | /!= #???????# ![[=[Eh =EE ??????? | | ##%[ #???##### % *=E=%=%[!h E ???????? | | #*%! #???#"""" % 3% *E% !=%[ """????????? | | "#/[% #???#"" %!=![%jz! * """????????? | | "# !% #???#""" [%== # #??????????? | | "# #???#"" %@=%/ p #???????? | | "# #???#""" !=!% %! # j X"???????? | | "# ###?#" !==!%[ "# "" "" #???????? | | "# !""#"#"" !%!!%hE " "" X????????? | | "# % =%""""#"" "*!%i%% " "??????????? | | "# !!""######%%%jj=*!" ?????????? | | ## ###???# # =jj!!= %* [ ????????? | | ?# ######### *%*!![ % =%! ?????????? | | ?# % =*%=[%==""# !*! ?????????? | | ?# %! !!!!=[* "" ??????????? | | ?#% % """"[!!%*! ""# ??????????? | | ## % "??"**[[! "# ???????????? | | "" % % "??" ! ""#?#### ##???????????? | | =% "??" """"?????"?????????????? | | % %% "??" """"???????????????????? | | !! "??" ???????????????????? | | % % "??" ??????????????????? | | "??" ?????????????????? | | #"??"#" ?????????????????? | | #????#" ????????????????? | | % #????#""" "" """""""???????????????? | | #### ### ####?????###### #####?????????????????? | | #" #?????????????? ?????????????????????? | | ## #??????????????? ?????????????????????? | | # #" #???????????????? ????????????????????? | +----------------------------------------------------+ Best States ------------- Heat Dissipation 85 Energy Generation 26 Energy Capacity 340 Matter Stores 300 Matter Capacity 300 Sight Range 16 Terrain Scan Density 10 Jamming Range 12 Cloak Strength 2 Power Amplification 20 Armor Coverage 450 Resistance: KI 20 Propulsion Shielding 15 Evasion (%) 50 Targeting Accuracy 8 Core Analysis 6 Armor Integrity Analysis 30 Recoil Reduction 2 Relay Coupler Types 2 Relay Coupler Value 50 Trap Extractor Capacity 6 Item Schematics ----------------- None Robot Schematics ------------------ None Fabricated ------------ Nothing Repaired ---------- Nothing Studied --------- Arm. Huge Wheel | -7/Factory | Hacked Alien Tech Used ----------------- None Achievements -------------- None Challenges ------------ None Game ------ Seed SuspensionAbsorptionTorch Manual? 0 Play Time 01:26:56 Cumulative 450.9 hours Start 2025.10.30 @ 10:39:02 End 2025.10.31 @ 03:17:20 Sessions 12 Manual Loads 0 Difficulty Rogue Special Mode None Game No. 573 Rogue 573 Adventurer 0 Explorer 0 Win Type - Total 14 Types 6/0/2/2/1/0/2/1/0/0 Lore% 90 Gallery% 84 Achievement% 61 Wizard Run 0 Options --------- Layout 0 ASCII 0 Keyboard 0 Movement Mouse Keybinds 0 Fullscreen 1 Font 24/Terminus Map View 76x50 Zoom Use 0% Tactical HUD 1 Map Filters NONE Filters NONE Steam 1 RUN: 01397412-a781-418b-9ca0-e16a2522dd70